fUSD/lending_fUSD_20260424
["ID","MTS","AMOUNT","RATE_DAILY","PERIOD"]
[421077512,1776979831836,-2500.0,8.245e-05,2]
[421077513,1776979831845,-406.85317137,8.245e-05,2]
[421077514,1776979831898,-2093.14682863,8.245e-05,2]
[421077515,1776979831908,-2500.0,8.245e-05,2]
[421077516,1776979831917,-150.0,8.584e-05,2]
[421077517,1776979831927,-578.20924308,8.585e-05,2]
[421077518,1776979831936,-2724.18919454,8.585e-05,2]
[421077519,1776979831947,-420.0,8.585e-05,2]
[421077520,1776979831958,-1948.34190546,8.585e-05,2]
[421077521,1776979832013,-1254.09285305,8.585e-05,2]
[421077522,1776979832024,-2350.76077348,8.585e-05,2]
[421077523,1776979832036,-854.78313894,8.585e-05,2]
[421077524,1776979832046,-500.0,8.585e-05,2]
[421077525,1776979832055,-151.0,8.585e-05,2]
[421077526,1776979832064,-174.61919141,8.585e-05,2]
[421077527,1776979832074,-235.75327194,8.585e-05,2]
[421077528,1776979832083,-244.476143,8.585e-05,2]
[421077529,1776979832092,-157.83193829,8.585e-05,2]
[421077530,1776979832104,-95.689822,8.585e-05,2]
[421077531,1776979832113,-262.90206542,8.585e-05,2]
[421077532,1776979832123,-151.0,8.585e-05,2]
[421077533,1776979832132,-177.40811258,8.585e-05,2]
[421077534,1776979832143,-95.22132927,8.585e-05,2]
[421077535,1776979832153,-156.587,8.585e-05,2]
[421077536,1776979832163,-282.71673119,8.585e-05,2]
[421077537,1776979832172,-196.29300777,8.585e-05,2]
[421077539,1776979832181,-293.17725025,8.585e-05,2]
[421077541,1776979832191,-304.02480851,8.585e-05,2]
[421077543,1776979832200,-315.27372642,8.585e-05,2]
[421077545,1776979832210,-326.9388543,8.585e-05,2]
[421077546,1776979832219,-339.0355919,8.585e-05,2]
[421077548,1776979832229,-1074.16066856,8.64e-05,2]
[421077551,1776979832240,-8831.43740794,8.64e-05,2]
[421077553,1776979832250,-500.0,8.64e-05,2]
[421077555,1776979832259,-10272.10520533,8.695e-05,2]
[421077557,1776979832269,-500.0,8.695e-05,2]
[421077559,1776979832278,-7358.7403424,8.75e-05,2]
[421077568,1776979837985,-314.39426535,8.75e-05,2]
[421077569,1776979838041,-2979.03849017,8.75e-05,2]
[421077570,1776979838051,-500.0,8.75e-05,2]
[421077571,1776979838062,-2234.59795416,8.805e-05,2]
[421077572,1776979838074,-467.4334257,8.805e-05,2]
[421077573,1776979838672,-8344.27212269,8.805e-05,2]
[421077574,1776979838682,-500.0,8.805e-05,2]
[421077575,1776979838691,-717.23528448,8.835e-05,2]
[421077576,1776979838706,-339.88265974,8.835e-05,2]
[421077577,1776979838717,-10915.79728157,8.835e-05,2]
[421077578,1776979838729,-6275.55825757,8.835e-05,2]
[421077579,1776979838740,-75226.16953412,8.835e-05,2]
[421077580,1776979838752,-48993.48432967,8.835e-05,2]
[421077581,1776979838763,-829.67010334,8.835e-05,2]
[421077582,1776979838777,-1407.7038,8.835e-05,2]
[421077584,1776979840030,-335.18001523,8.835e-05,2]
[421077585,1776979840142,-878.77555066,8.835e-05,2]
[421077588,1776979840197,-420.35104813,8.835e-05,2]
[421077601,1776979840309,-550.0,8.835e-05,2]
[421077641,1776979843206,-361963.82479051,8.835e-05,2]
[421077642,1776979843219,-758362.05786268,8.835e-05,2]
[421077651,1776979845974,-463.35377226,8.835e-05,2]
[421077652,1776979846456,-44853.16174614,8.835e-05,2]
[421077656,1776979852467,152.0,8.839e-05,7]
[421077666,1776980833287,1900.0,8.9e-05,3]
[421077667,1776980835376,2900.0,9e-05,3]
[421077683,1776981032080,-150.0,7.94e-05,2]
[421077684,1776981032090,-150.0,7.94e-05,2]
[421077685,1776981032099,-150.0,7.94e-05,2]
[421077686,1776981032109,-150.0,7.94e-05,2]
[421077687,1776981032119,-150.0,7.94e-05,2]
[421077688,1776981032130,-150.0,7.94e-05,2]
[421077689,1776981032140,-250.0,7.94e-05,2]
[421077690,1776981032151,-254.0,7.94e-05,2]
[421077691,1776981032161,-900.0,8e-05,2]
[421077692,1776981032171,-150.0,8.028e-05,2]
[421077693,1776981032180,-150.0,8.066e-05,2]
[421077694,1776981032190,-150.0,8.087e-05,2]
[421077695,1776981032199,-150.0,8.116e-05,2]
[421077696,1776981032208,-500.0,8.119e-05,2]
[421077697,1776981032218,-1200.0,8.159e-05,2]
[421077698,1776981032227,-150.0,8.16e-05,2]
[421077699,1776981032236,-150.0,8.192e-05,2]
[421077700,1776981032246,-150.0,8.204e-05,2]
[421077701,1776981032255,-280.0,8.219e-05,2]
[421077702,1776981032264,-150.0,8.234e-05,2]
[421077703,1776981032274,-300.0,8.286e-05,2]
[421077704,1776981032283,-150.0,8.293e-05,2]
[421077705,1776981032292,-150.0,8.318e-05,2]
[421077706,1776981032302,-150.0,8.381e-05,2]
[421077707,1776981032311,-150.0,8.381e-05,2]
[421077708,1776981032320,-150.0,8.381e-05,2]
[421077709,1776981032330,-150.0,8.444e-05,2]
[421077710,1776981032339,-150.0,8.449e-05,2]
[421077711,1776981032349,-163372.7251668,8.45e-05,2]
[421077714,1776981032361,-63274.22150195,8.45e-05,2]
[421077716,1776981032372,-121463.53081044,8.45e-05,2]
[421077718,1776981032384,-1254.41808677,8.45e-05,2]
[421077720,1776981032395,-1092.01883907,8.45e-05,2]
[421077721,1776981032418,-1400.0,8.45e-05,2]
[421077722,1776981032429,-3352.98862681,8.45e-05,2]
[421077723,1776981032440,-285.0,8.45e-05,2]
[421077724,1776981032452,-48678.06341189,8.45e-05,2]
[421077726,1776981032463,-407.0,8.45e-05,2]
[421077728,1776981032475,-2160.50459779,8.45e-05,2]
[421077740,1776981038401,-380.73000676,8.45e-05,2]
[421077741,1776981038414,-76167.24879889,8.45e-05,2]
[421077742,1776981038426,-48993.48432967,8.45e-05,2]
[421077743,1776981038437,-829.67010334,8.45e-05,2]
[421077859,1776981040460,-428.53781818,8.45e-05,2]
[421077860,1776981040471,-503.33128176,8.45e-05,2]
[421077861,1776981040881,-1873.42176908,8.45e-05,2]
[421077872,1776981046564,-75701.0,8.45e-05,2]
[421077873,1776981046671,-7457.13294981,8.45e-05,2]
[421077876,1776981397844,151.0,0.000165,120]
[421077877,1776981940850,-257.0,8.219e-05,2]
[421077881,1776982006435,243.00163583,8.219e-05,2]
[421077886,1776982050057,1600.0,9e-05,3]
[421077887,1776982231339,-267.0,8e-05,2]
[421077888,1776982231392,-533.0,8e-05,2]
[421077889,1776982231402,-250.0,8.11e-05,2]
[421077890,1776982231411,-150.0,8.219e-05,2]
[421077891,1776982231421,-150.0,8.219e-05,2]
[421077892,1776982231431,-232.36403642,8.219e-05,2]
[421077893,1776982231440,-150.0,8.219e-05,2]
[421077894,1776982231450,-280.0,8.219e-05,2]
[421077895,1776982231459,-160.65467667,8.28e-05,2]
[421077896,1776982231469,-1200.0,8.28e-05,2]
[421077897,1776982231478,-2500.0,8.281e-05,2]
[421077898,1776982231487,-2500.0,8.281e-05,2]
[421077899,1776982231496,-2500.0,8.281e-05,2]
[421077900,1776982231507,-150.0,8.348e-05,2]
[421077901,1776982231516,-250.0,8.349e-05,2]
[421077902,1776982231526,-2135.02237983,8.35e-05,2]
[421077903,1776982231538,-63285.75315601,8.35e-05,2]
[421077904,1776982231553,-3652.7900418,8.35e-05,2]
[421077905,1776982231564,-421.55565,8.35e-05,2]
[421077906,1776982231611,-552.3873477,8.35e-05,2]
[421077909,1776982237663,-269.17316,8.35e-05,2]
[421077910,1776982237825,-76167.24879889,8.35e-05,2]
[421077934,1776982239988,-655.44057045,8.35e-05,2]
[421077953,1776982242519,-1023.71725285,8.35e-05,2]
[421077954,1776982242679,-2736.56446602,8.35e-05,2]
[421077965,1776982245552,-931.5460343,8.35e-05,2]
[421077966,1776982246079,-491.84284613,8.35e-05,2]
[421077998,1776983431698,-250.0,8.202e-05,2]
[421077999,1776983431708,-257.0,8.202e-05,2]
[421078000,1776983431717,-195.61,8.208e-05,2]
[421078001,1776983431727,-250.0,8.217e-05,2]
[421078002,1776983431736,-280.0,8.219e-05,2]
[421078003,1776983431746,-300.0,8.247e-05,2]
[421078004,1776983431755,-1200.0,8.247e-05,2]
[421078005,1776983431765,-150.0,8.247e-05,2]
[421078006,1776983431775,-300.0,8.247e-05,2]
[421078007,1776983431784,-6886.83566509,8.249e-05,2]
[421078008,1776983431795,-2445.95087844,8.249e-05,2]
[421078009,1776983431864,-66852.61806917,8.249e-05,2]
[421078010,1776983431876,-18570.86129641,8.249e-05,2]
[421078011,1776983431887,-7480.42865799,8.249e-05,2]
[421078022,1776983437805,-21353.33355356,8.249e-05,2]
[421078023,1776983437862,-403.3679977,8.249e-05,2]
[421078024,1776983437874,-2000.0,8.249e-05,2]
[421078025,1776983437887,-35598.13288164,8.249e-05,2]
[421078026,1776983437897,-197.9,8.308e-05,2]
[421078027,1776983437906,-4946.26842634,8.308e-05,2]
[421078028,1776983437916,-151.0,8.347e-05,2]
[421078029,1776983437927,-500.0,8.45e-05,2]
[421078030,1776983437937,-2500.0,8.559e-05,2]
[421078031,1776983437947,-32273.94749091,8.659e-05,2]
[421078032,1776983437959,-6417.76083311,8.659e-05,2]
[421078033,1776983437968,-1254.42002279,8.918e-05,2]
[421078034,1776983437978,-6929.36,8.986e-05,2]
[421078035,1776983437987,-394.64476513,8.994e-05,2]
[421078036,1776983437997,-1532.0,9e-05,2]
[421078037,1776983438007,-500.0,9e-05,2]
[421078038,1776983438017,-250.0,9.006e-05,2]
[421078039,1776983438032,-2500.0,9.015e-05,2]
[421078040,1776983438042,-500.0,9.015e-05,2]
[421078041,1776983438051,-5000.0,9.015e-05,2]
[421078042,1776983438061,-2500.0,9.015e-05,2]
[421078043,1776983438071,-2500.0,9.015e-05,2]
[421078044,1776983438083,-2500.0,9.015e-05,2]
[421078045,1776983438093,-2500.0,9.015e-05,2]
[421078046,1776983438103,-250.0,9.015e-05,2]
[421078047,1776983438113,-296.84914214,9.043e-05,2]
[421078048,1776983438123,-420.0,9.071e-05,2]
[421078049,1776983438135,-1680.0,9.071e-05,2]
[421078050,1776983438146,-255.0,9.071e-05,2]
[421078051,1776983438156,-420.0,9.071e-05,2]
[421078052,1776983438165,-9159.05051359,9.084e-05,2]
[421078053,1776983438175,-500.0,9.178e-05,2]
[421078054,1776983438186,-600.0,9.214e-05,2]
[421078055,1776983438196,-134.39905291,9.214e-05,2]
[421078056,1776983438208,-58.98094709,9.214e-05,2]
[421078057,1776983438218,-500.0,9.274e-05,2]
[421078058,1776983438228,-151.0,9.302e-05,2]
[421078059,1776983438237,-119.68915625,9.305e-05,5]
[421078060,1776983438254,-125.31084375,9.305e-05,5]
[421078061,1776983438264,-374.68915625,9.305e-05,2]
[421078062,1776983438275,-284.67244094,9.305e-05,2]
[421078063,1776983438287,-1383.16954307,9.305e-05,2]
[421078071,1776983441023,-1286.33966912,9.305e-05,2]
[421078088,1776983443009,-426.5,9.305e-05,2]
[421078091,1776983445748,-24443.88822399,9.305e-05,2]
[421078092,1776983445807,-412.18422973,9.305e-05,2]
[421078093,1776983446084,-1388.5567369,9.305e-05,2]
[421078094,1776983446094,-370.4432631,9.305e-05,2]
[421078095,1776983446142,-1919.97830001,9.305e-05,2]
[421078096,1776983446202,-4439.0000001,9.305e-05,2]
[421078099,1776983551264,352.0,8.73e-05,5]
[421078100,1776983586350,165.0,8.73e-05,3]
[421078101,1776983653346,166.0,8.73e-05,3]
[421078102,1776983710855,178.0,8.73e-05,3]
[421078103,1776983710892,166.0,8.73e-05,3]
[421078104,1776983767766,166.0,8.73e-05,3]
[421078105,1776983830445,166.0,8.73e-05,3]
[421078106,1776983887346,166.0,8.73e-05,3]
[421078107,1776983951910,166.0,8.73e-05,3]
[421078109,1776984007131,166.0,8.73e-05,3]
[421078110,1776984164678,299.0,8.73e-05,5]
[421078111,1776984186235,215.0,8.73e-05,3]
[421078137,1776984631826,-567.75006,7.9e-05,2]
[421078138,1776984631838,-32.24994,7.9e-05,2]
[421078139,1776984631847,-250.0,7.95e-05,2]
[421078140,1776984631857,-1300.0,8e-05,2]
[421078141,1776984631866,-250.0,8.009e-05,2]
[421078142,1776984631876,-1200.0,8.047e-05,2]
[421078143,1776984631886,-300.0,8.048e-05,2]
[421078144,1776984631895,-150.0,8.048e-05,2]
[421078145,1776984631905,-9159.05051359,8.049e-05,2]
[421078146,1776984631914,-35909.7572,8.049e-05,2]
[421078147,1776984631924,-151.0,8.145e-05,2]
[421078148,1776984631933,-151.0,8.146e-05,2]
[421078149,1776984631942,-151.0,8.146e-05,2]
[421078150,1776984631952,-151.0,8.146e-05,2]
[421078151,1776984631961,-3145.093,8.147e-05,2]
[421078152,1776984631970,-262.911,8.147e-05,2]
[421078153,1776984631980,-500.0,8.148e-05,2]
[421078154,1776984631989,-500.0,8.148e-05,2]
[421078155,1776984631998,-250.0,8.148e-05,2]
[421078156,1776984632007,-236.54,8.148e-05,2]
[421078157,1776984632017,-889.446869,8.178e-05,2]
[421078158,1776984632027,-4946.26842634,8.178e-05,2]
[421078159,1776984632036,-500.0,8.219e-05,2]
[421078160,1776984632045,-369.6795411,8.26e-05,2]
[421078161,1776984632055,-342.0,8.272e-05,2]
[421078162,1776984632064,-150.0,8.359e-05,2]
[421078163,1776984632074,-150.68563301,8.359e-05,2]
[421078164,1776984632083,-150.0,8.359e-05,2]
[421078165,1776984632092,-150.0,8.359e-05,2]
[421078166,1776984632102,-150.0,8.359e-05,2]
[421078167,1776984632111,-150.00000001,8.359e-05,2]
[421078168,1776984632120,-150.0,8.359e-05,2]
[421078169,1776984632129,-150.0,8.359e-05,2]
[421078170,1776984632139,-150.0,8.359e-05,2]
[421078171,1776984632148,-150.0,8.359e-05,2]
[421078173,1776984632157,-150.0,8.359e-05,2]
[421078175,1776984632166,-150.0,8.398e-05,2]
[421078177,1776984632175,-236.54,8.422e-05,2]
[421078179,1776984632184,-1396.32275583,8.432e-05,2]
[421078181,1776984632193,-150.0,8.436e-05,2]
[421078183,1776984632202,-150.0,8.452e-05,2]
[421078185,1776984632212,-271.81408,8.461e-05,2]
[421078187,1776984632222,-150.0,8.475e-05,2]
[421078189,1776984632231,-150.0,8.475e-05,2]
[421078191,1776984632240,-150.0,8.492e-05,2]
[421078193,1776984632250,-500.0,8.493e-05,2]
[421078195,1776984632259,-150.0,8.514e-05,2]
[421078197,1776984632268,-150.0,8.545e-05,2]
[421078199,1776984632277,-150.0,8.545e-05,2]
[421078202,1776984632286,-150.0,8.552e-05,2]
[421078204,1776984632295,-600.0,8.574e-05,2]
[421078206,1776984632305,-193.38,8.574e-05,2]
[421078208,1776984632315,-390.68138725,8.585e-05,2]
[421078210,1776984632325,-150.0,8.591e-05,2]
[421078212,1776984632334,-150.0,8.591e-05,2]
[421078213,1776984632343,-150.0,8.591e-05,2]
[421078215,1776984632353,-150.0,8.624e-05,2]
[421078216,1776984632362,-150.0,8.63e-05,2]
[421078217,1776984632372,-150.0,8.638e-05,2]
[421078218,1776984632381,-150.0,8.655e-05,2]
[421078219,1776984632390,-150.0,8.668e-05,2]
[421078220,1776984632399,-197.9,8.688e-05,2]
[421078221,1776984632409,-2500.0,8.69e-05,2]
[421078222,1776984632418,-2500.0,8.69e-05,2]
[421078223,1776984632428,-2500.0,8.69e-05,2]
[421078224,1776984632437,-2500.0,8.69e-05,2]
[421078225,1776984632447,-2500.0,8.69e-05,2]
[421078226,1776984632456,-250.0,8.69e-05,2]
[421078227,1776984632465,-5000.0,8.69e-05,2]
[421078228,1776984632475,-500.0,8.69e-05,2]
[421078229,1776984632483,-5000.0,8.69e-05,2]
[421078230,1776984632493,-2710.63173989,8.69e-05,2]
[421078231,1776984632503,-300.0,8.69e-05,2]
[421078232,1776984632512,-84.21132683,8.69e-05,2]
[421078233,1776984632533,-215.78867317,8.69e-05,2]
[421078234,1776984632542,-300.0,8.69e-05,2]
[421078235,1776984632552,-300.0,8.69e-05,2]
[421078236,1776984632561,-268.95980331,8.69e-05,2]
[421078237,1776984632570,-236.54,8.696e-05,2]
[421078238,1776984632580,-150.0,8.707e-05,2]
[421078239,1776984632590,-150.0,8.707e-05,2]
[421078240,1776984632599,-46.71152352,8.713e-05,2]
[421078241,1776984632611,-453.28847648,8.713e-05,2]
[421078242,1776984632620,-432.27734691,8.713e-05,2]
[421078243,1776984632632,-67.72265309,8.713e-05,2]
[421078244,1776984632641,-299.83587458,8.713e-05,2]
[421078245,1776984632652,-37.93169826,8.713e-05,2]
[421078246,1776984632662,-160.14096925,8.713e-05,2]
[421078247,1776984632671,-503.45930392,8.713e-05,2]
[421078248,1776984632680,-387.46802857,8.713e-05,2]
[421078249,1776984632692,-112.53197143,8.713e-05,2]
[421078250,1776984632701,-500.0,8.713e-05,2]
[421078251,1776984632710,-500.0,8.713e-05,2]
[421078252,1776984632720,-500.0,8.713e-05,2]
[421078253,1776984632729,-500.42337708,8.713e-05,2]
[421078254,1776984632738,-255.76465149,8.713e-05,2]
[421078259,1776984638116,-244.85973899,8.713e-05,2]
[421078260,1776984638126,-223.26820509,8.713e-05,2]
[421078261,1776984638138,-276.73179491,8.713e-05,2]
[421078262,1776984638147,-500.0,8.713e-05,2]
[421078263,1776984638156,-500.55144924,8.713e-05,2]
[421078264,1776984638166,-500.97543413,8.713e-05,2]
[421078265,1776984638175,-263.0,8.713e-05,2]
[421078266,1776984638185,-151.0,8.729e-05,2]
[421078267,1776984638194,-151.0,8.729e-05,2]
[421078268,1776984638204,-151.0,8.729e-05,2]
[421078269,1776984638214,-150.0,8.73e-05,2]
[421078270,1776984638224,-150.0,8.73e-05,2]
[421078271,1776984638233,-37774.85723897,8.732e-05,2]
[421078272,1776984638245,-48993.48432967,8.732e-05,2]
[421078273,1776984638256,-829.67010334,8.732e-05,2]
[421078274,1776984638272,-4100.23079012,8.732e-05,2]
[421078275,1776984638283,-4757.0,8.732e-05,2]
[421078276,1776984638302,-68087.4779118,8.732e-05,2]
[421078277,1776984638312,-371.59376674,8.732e-05,2]
[421078278,1776984638338,-516.8013278,8.732e-05,2]
[421078319,1776984640138,-596.298,8.732e-05,2]
[421078320,1776984640505,-3606.45195556,8.732e-05,2]
[421078321,1776984640514,-612.481753,8.732e-05,2]
[421078322,1776984640523,-612.481753,8.732e-05,2]
[421078323,1776984640533,-612.481753,8.732e-05,2]
[421078324,1776984640542,-612.481753,8.732e-05,2]
[421078325,1776984640552,-421.692296,8.732e-05,2]
[421078326,1776984640562,-421.692296,8.732e-05,2]
[421078327,1776984640572,-421.692296,8.732e-05,2]
[421078328,1776984640581,-421.692296,8.732e-05,2]
[421078329,1776984640592,-151.0,8.732e-05,2]
[421078330,1776984640601,-151.0,8.732e-05,2]
[421078331,1776984640610,-151.0,8.732e-05,2]
[421078332,1776984640620,-150.0,8.746e-05,2]
[421078333,1776984640631,-150.0,8.757e-05,2]
[421078334,1776984640641,-1000.0,8.774e-05,2]
[421078335,1776984640650,-150.0,8.785e-05,2]
[421078336,1776984640669,-150.0,8.815e-05,2]
[421078337,1776984640680,-150.0,8.823e-05,2]
[421078338,1776984640689,-150.0,8.823e-05,2]
[421078339,1776984640699,-150.0,8.823e-05,2]
[421078340,1776984640709,-150.0,8.823e-05,2]
[421078341,1776984640720,-150.0,8.823e-05,2]
[421078342,1776984640732,-1680.0,8.852e-05,2]
[421078343,1776984640742,-420.0,8.853e-05,2]
[421078344,1776984640752,-255.0,8.853e-05,2]
[421078345,1776984640762,-150.0,8.862e-05,2]
[421078346,1776984640772,-150.0,8.89e-05,2]
[421078347,1776984640782,-150.0,8.901e-05,2]
[421078348,1776984640792,-150.0,8.916e-05,2]
[421078349,1776984640801,-150.0,8.916e-05,2]
[421078350,1776984640811,-151.0,8.936e-05,2]
[421078351,1776984640821,-151.0,8.936e-05,2]
[421078353,1776984640830,-152.869871,8.936e-05,2]
[421078355,1776984640840,-578.20924308,8.937e-05,2]
[421078356,1776984640851,-209.40437684,8.937e-05,2]
[421078357,1776984640863,-500.0,8.937e-05,2]
[421078358,1776984640874,-9552.16786547,8.937e-05,2]
[421078359,1776984640884,-721.12765535,8.937e-05,2]
[421078360,1776984640895,-743.50770149,8.937e-05,2]
[421078361,1776984640905,-1428.38747117,8.937e-05,2]
[421078362,1776984640917,-200.0,8.937e-05,2]
[421078363,1776984640928,-151.0,8.937e-05,2]
[421078364,1776984640939,-151.0,8.937e-05,2]
[421078365,1776984640949,-174.61919141,8.937e-05,2]
[421078366,1776984640959,-279.9045709,8.937e-05,2]
[421078367,1776984640969,-1000.0,8.937e-05,2]
[421078368,1776984640979,-724.09468125,8.937e-05,2]
[421078369,1776984640989,-151.0,8.937e-05,2]
[421078370,1776984640999,-150.0,8.939e-05,2]
[421078371,1776984641008,-150.0,8.939e-05,2]
[421078373,1776984641017,-236.54,8.97e-05,2]
[421078375,1776984641026,-150.0,8.975e-05,2]
[421078377,1776984641035,-150.0,8.978e-05,2]
[421078379,1776984641045,-500.0,8.992e-05,2]
[421078381,1776984641060,-9905.5980765,8.992e-05,2]
[421078383,1776984641070,-151.0,8.992e-05,2]
[421078386,1776984641080,-150.0,9.009e-05,2]
[421078388,1776984641090,-20262.39736913,9.014e-05,2]
[421078390,1776984641099,-151.0,9.014e-05,2]
[421078392,1776984641110,-151.0,9.014e-05,2]
[421078393,1776984641120,-151.0,9.014e-05,2]
[421078395,1776984641129,-151.0,9.014e-05,2]
[421078396,1776984641139,-215.674785,9.014e-05,2]
[421078398,1776984641149,-215.674785,9.014e-05,2]
[421078400,1776984641159,-215.674785,9.014e-05,2]
[421078402,1776984641170,-215.674785,9.014e-05,2]
[421078403,1776984641180,-151.0,9.014e-05,2]
[421078404,1776984641191,-151.0,9.014e-05,2]
[421078405,1776984641201,-239.788149,9.014e-05,2]
[421078406,1776984641211,-612.481753,9.014e-05,2]
[421078407,1776984641221,-612.481753,9.014e-05,2]
[421078408,1776984641231,-612.481753,9.014e-05,2]
[421078409,1776984641240,-612.481753,9.014e-05,2]
[421078410,1776984641250,-421.692296,9.014e-05,2]
[421078411,1776984641260,-421.692296,9.014e-05,2]
[421078412,1776984641271,-421.692296,9.014e-05,2]
[421078413,1776984641280,-421.692296,9.014e-05,2]
[421078414,1776984641290,-150.0,9.017e-05,2]
[421078415,1776984641300,-150.0,9.022e-05,2]
[421078416,1776984641313,-160.0,9.036e-05,2]
[421078417,1776984641324,-800.220939,9.036e-05,2]
[421078418,1776984641334,-1440.441879,9.036e-05,2]
[421078419,1776984641343,-500.0,9.047e-05,2]
[421078420,1776984641354,-5798.42690823,9.047e-05,2]
[421078421,1776984641373,-3942.06251881,9.047e-05,2]
[421078428,1776984643036,-500.0,8.916e-05,2]
[421078429,1776984643047,-531.61577829,9.047e-05,2]
[421078430,1776984643057,-151.0,9.047e-05,2]
[421078431,1776984643070,-151.0,9.047e-05,2]
[421078432,1776984643081,-151.0,9.047e-05,2]
[421078433,1776984643093,-150.0,9.055e-05,2]
[421078434,1776984643104,-150.0,9.055e-05,2]
[421078435,1776984643113,-150.0,9.055e-05,2]
[421078436,1776984643123,-168.9,9.069e-05,2]
[421078437,1776984643132,-168.9,9.069e-05,2]
[421078438,1776984643142,-160.0,9.075e-05,2]
[421078439,1776984643152,-899.403097,9.075e-05,2]
[421078440,1776984643162,-1404.18112471,9.075e-05,2]
[421078441,1776984643270,-114.4556165,9.075e-05,2]
[421078442,1776984643409,-120.16945279,9.075e-05,2]
[421078443,1776984643420,-160.0,9.08e-05,2]
[421078444,1776984643429,-536.40264057,9.08e-05,2]
[421078446,1776984645998,-232.30662643,9.08e-05,2]
[421078447,1776984646008,-1377.418535,9.08e-05,2]
[421078448,1776984646018,-160.0,9.081e-05,2]
[421078449,1776984646027,-2401.092487,9.081e-05,2]
[421078450,1776984646036,-4642.184975,9.081e-05,2]
[421078451,1776984646047,-150.0,9.094e-05,2]
[421078452,1776984646058,-500.0,9.102e-05,2]
[421078453,1776984646067,-10652.17309792,9.102e-05,2]
[421078454,1776984646076,-151.0,9.102e-05,2]
[421078455,1776984646086,-150.0,9.102e-05,2]
[421078456,1776984646095,-150.0,9.102e-05,2]
[421078457,1776984646104,-150.0,9.133e-05,2]
[421078458,1776984646114,-160.0,9.135e-05,2]
[421078459,1776984646123,-952.730358,9.135e-05,2]
[421078460,1776984646132,-1745.460717,9.135e-05,2]
[421078461,1776984646142,-150.0,9.136e-05,2]
[421078462,1776984646152,-150.0,9.155e-05,2]
[421078463,1776984646161,-500.0,9.157e-05,2]
[421078464,1776984646171,-3788.27186592,9.157e-05,2]
[421078465,1776984646297,-3700.0,9.157e-05,2]
[421078466,1776984646404,-2187.48845603,9.157e-05,2]
[421078467,1776984646416,-274.03360682,9.157e-05,2]
[421078468,1776984646428,-1096.50957378,9.157e-05,2]
[421078469,1776984646438,-78.36337622,9.157e-05,2]
[421078476,1776985098498,-151.0,7.946e-05,2]
[421078477,1776985098525,-254.0,7.946e-05,2]
[421078478,1776985098559,-500.0,7.948e-05,2]
[421078479,1776985098594,-500.0,7.948e-05,2]
[421078480,1776985098630,-500.0,7.948e-05,2]
[421078481,1776985098662,-500.0,7.948e-05,2]
[421078482,1776985098695,-416.48137368,7.948e-05,2]
[421078483,1776985098722,-229.80933738,7.948e-05,2]
[421078484,1776985098748,-500.0,7.948e-05,2]
[421078485,1776985098774,-500.0,7.948e-05,2]
[421078486,1776985098801,-454.06154344,7.948e-05,2]
[421078487,1776985098827,-500.0,7.948e-05,2]
[421078488,1776985098853,-500.0,7.948e-05,2]
[421078489,1776985098879,-261.27277377,7.948e-05,2]
[421078490,1776985098905,-426.71774127,7.948e-05,2]
[421078491,1776985098937,-506.91666536,7.948e-05,2]
[421078492,1776985098964,-250.0,7.948e-05,2]
[421078493,1776985098992,-1200.0,7.948e-05,2]
[421078494,1776985099018,-300.0,7.948e-05,2]
[421078495,1776985099045,-150.0,7.948e-05,2]
[421078496,1776985099472,-81399.7405651,7.949e-05,2]
[421078497,1776985231489,455.0,0.000165,120]
[421078498,1776985252210,152.0,8.087e-05,7]
[421078499,1776985392627,153.0,8.73e-05,5]
[421078503,1776985568583,-1200.0,7.789e-05,2]
[421078504,1776985568611,-252.0,7.789e-05,2]
[421078505,1776985568651,-2516.075,7.79e-05,2]
[421078506,1776985568678,-31.925,7.79e-05,2]
[421078514,1776985651752,1100.0,8.8e-05,3]
[421078515,1776985654289,1700.0,8.9e-05,3]
[421078516,1776985655979,2300.0,9e-05,3]
[421078517,1776985771091,300.0,8.8e-05,3]
[421078518,1776985773220,600.0,8.9e-05,3]
[421078519,1776985775319,292.76781383,9e-05,3]
[421078522,1776985832137,-178.404,7.79e-05,2]
[421078523,1776985832149,-252.0,7.79e-05,2]
[421078524,1776985832159,-455.56395154,7.848e-05,2]
[421078525,1776985832169,-28.35010962,7.848e-05,2]
[421078526,1776985832186,-326.49155613,7.848e-05,2]